Cogmind - Beta 16.1 @@@ ROGUE MODE // 2026.02.10 @ 13:24:36 Player: Drago Result: Destroyed by L5-KYF(R) with Subdweller Laser Performance ------------- Evolutions (0) 0 Regions Visited (2) 400 Robots Destroyed (17) 85 Value Destroyed (372) 372 Prototype IDs (2) 40 Alien Tech Used (0) 0 Bonus (0) 0 TOTAL SCORE: 897 Bonus ------- None Cogmind --------- Core Integrity 0/250 Matter 143/300 Energy 93/100 System Corruption 0% Temperature Cool (6) Movement Rolling (90) Location -10/Subcaves Parts ------- > --- POWER (1) -------- (None) > --- PROPULSION (2) --- Armored Wheel Armored Wheel > --- UTILITY (2) ------ Large Storage Unit > --- WEAPON (2) ------- Autogun > --- INVENTORY (15) --- Subdweller Power Source Armored Wheel Armored Wheel Armored Wheel Armored Wheel Small Storage Unit Large Matter Pod (150) Subdweller Optics Autogun Peak State ------------ > --- POWER ------------ Ion Engine > --- PROPULSION ------- Armored Wheel Armored Wheel > --- UTILITY ---------- Large Storage Unit Seismic Detector > --- WEAPON ----------- Light Assault Rifle Autogun > --- INVENTORY -------- Ion Engine Subdweller Power Source Armored Wheel Armored Wheel Armored Wheel Armored Wheel Armored Wheel Small Storage Unit Large Matter Pod Subdweller Optics Autogun Autogun Autogun [Rating: 12] Favorites ----------- Power Light Ion Engine Engine Light Ion Engine Propulsion Light Treads Treads Light Treads Wheel Wheel Utility Small Storage Unit Device Seismic Detector Storage Small Storage Unit Weapon Light Assault Rifle Ballistic Gun Light Assault Rifle Build | -11 -10 -10 ------- Run | Yrd Mat Sub Slots Evolved . | . . . Power . | . . . Propulsion . | . . . Utility . | . . . Weapon . | . . . Parts Attached 24 | 7 10 7 Power 6 | 1 4 1 Engine 6 | 1 4 1 Core . | . . . Reactor . | . . . Propulsion 7 | 2 2 3 Treads 3 | 1 2 . Leg . | . . . Wheel 4 | 1 . 3 Hover . | . . . Flight . | . . . Utility 5 | 2 3 . Device 1 | 1 . . Storage 4 | 1 3 . Processor . | . . . Hackware . | . . . Protection . | . . . Artifact . | . . . Weapon 6 | 2 1 3 Energy Gun . | . . . Energy Cannon . | . . . Ballistic Gun 6 | 2 1 3 Ballistic Cannon . | . . . Launcher . | . . . Special Weapon . | . . . Impact Weapon . | . . . Slashing Weapon . | . . . Piercing Weapon . | . . . Special Melee Weapon . | . . . Unidentified Prototypes . | . . . Parts Lost 12 | . 3 9 Power 5 | . 3 2 Propulsion 2 | . . 2 Utility 1 | . . 1 Weapon 4 | . . 4 Highest Loss Streak 8 | . 2 8 To Critical Strikes 1 | . . 1 Average Backups 7 | 1 6 13 Power . | . . 1 Propulsion 3 | . 3 6 Utility 1 | . 1 2 Weapon 1 | . . 3 Tool/Special . | . . . Unused Backups 11 | . 4 7 Power 1 | . . 1 Propulsion 6 | . 2 4 Utility 2 | . 1 1 Weapon 2 | . 1 1 Tool/Special . | . . . Average Slot Usage (%) 98 | . 99 93 Engine 13 | . 13 12 Treads 21 | . 22 17 Wheel 6 | . 5 8 Device 7 | . 7 12 Storage 19 | . 21 14 Ballistic Gun 27 | . 28 26 Peak Build Rating 12 | 7 9 12 Average Rating 7 | 5 7 9 On Entrance 5 | . 7 9 Avg Prop Armor Cover (%) 13 | 13 13 13 Naked Turns . | . . . Heaviest Build 30 | 11 30 30 Greatest Support 40 | 10 40 40 Greatest Overweight (x) 2 | 1 1 2 Average Overweight (x) . | . . . Largest Inventory Capacity 15 | 8 15 15 Average Capacity 10 | 7 10 15 Most Carried 15 | 3 15 15 Average Carried 7 | 1 6 13 Final Capacity 15 | 8 15 15 Final Carried 14 | 3 14 9 Class Distribution -------------------- 100% | Mutant Dominant Class ---------------- Mutant | -10/Materials Mutant | -10/Subcaves Resources | -11 -10 -10 ----------- Run | Yrd Mat Sub Matter Collected 673 | 254 379 40 Remotely . | . . . Salvage Created 609 | 64 495 50 Parts 37 | 8 26 3 Haulers Intercepted 1 | . 1 . Recyclers Shooed 1 | . 1 . Parts Field Recycled . | . . . Retrieved Matter . | . . . Parts Self-Destructed 5 | . . 5 Prevented . | . . . Parts Restored . | . . . Kills | -11 -10 -10 ------- Run | Yrd Mat Sub Combat Hostiles Destroyed 11 | . 10 1 Guns 11 | . 10 1 Classes Destroyed 8 | 2 5 1 Worker 1 | . 1 . Tunneler 1 | 1 . . Hauler 1 | . 1 . Recycler 2 | 1 1 . Operator 1 | . 1 . Swarmer 3 | . 3 . Grunt 7 | . 7 . Subdweller 1 | . . 1 Best Kill Streak 8 | 1 8 1 Combat Bots Only 5 | . 5 1 Max Kills in Single Turn 1 | 1 1 1 Gunslinging . | . . . Exploded . | . . . Melee . | . . . Uniques/NPCs Destroyed . | . . . Combat | -11 -10 -10 -------- Run | Yrd Mat Sub Hostile Shots Fired 123 | . 63 60 Missed 24 | . 12 12 Hits 99 | . 51 48 Projectile 99 | . 51 48 Critical Strikes 6 | . 2 4 Damage Taken 1681 | . 693 988 Core 259 | . 155 104 Absorbed by Shields . | . . . Core Remaining (%) 100 | 100 . . Volleys Fired 102 | 9 60 33 Largest 2 | 2 2 2 Hottest 46 | 40 40 46 Shots Fired 200 | 18 120 62 Gun 200 | 18 120 62 Cannon . | . . . Launcher . | . . . Special . | . . . Kinetic 200 | 18 120 62 Thermal . | . . . Explosive . | . . . Electromagnetic . | . . . Robot Hit Streak 25 | 5 8 25 Robot Miss Streak 5 | 1 5 1 Penetration Max . | . . . Secondary Targets . | . . . Shots Hit Robots 143 | 12 80 51 Core Hits 42 | 4 32 6 Critical Kills . | . . . Critical Parts Destroyed . | . . . Critical Strikes . | . . . Melee Attacks . | . . . Impact . | . . . Slashing . | . . . Piercing . | . . . Sneak Attacks . | . . . Combat Hostiles . | . . . Follow-up Attacks . | . . . Damage Inflicted 960 | 101 675 184 Guns 960 | 101 675 184 Cannons . | . . . Explosions . | . . . Melee . | . . . Ramming . | . . . Kinetic 960 | 101 675 184 Thermal . | . . . Explosive . | . . . Electromagnetic . | . . . Impact . | . . . Slashing . | . . . Piercing . | . . . Highest Corruption . | . . . Average Corruption . | . . . Corruption Purged . | . . . Corruption Blocked . | . . . Overload Shots . | . . . Overflow Damage . | . . . Projectiles . | . . . Explosions . | . . . Melee . | . . . Knockbacks . | . . . Impact . | . . . Kinetic . | . . . Secondary . | . . . Self-Inflicted Damage . | . . . Shots . | . . . Rammed . | . . . Targets Rammed . | . . . Kicked . | . . . Crushed . | . . . Highest Temperature 27 | . 27 . Average Temperature 10 | . 10 . Received Heat Transfer 669 | . 399 270 Siege Activations . | . . . Martial Activations . | . . . Shielding Activations . | . . . Robots Disrupted . | . . . Combat Hostiles . | . . . Robots Corrupted . | . . . Combat Hostiles . | . . . Parts Fried . | . . . Impact Corruptions . | . . . Robots Melted . | . . . Combat Hostiles . | . . . Parts Melted . | . . . Heat Transferred . | . . . Parts Sabotaged . | . . . Parts Stolen . | . . . Parts Stripped . | . . . Power Chain Reactions . | . . . Alert | -11 -10 -10 ------- Run | Yrd Mat Sub Maximum Alert Level . | . . . Low Security (%) 100 | 100 100 . Level 1 . | . . . Level 2 . | . . . Level 3 . | . . . Level 4 . | . . . Level 5 . | . . . High Security . | . . . Max Security . | . . . Peak Influence 170 | 5 170 . Initial . | . . . Average 61 | 1 65 . Influence Increases 329 | 10 319 . Destroy 0b10 Robot/C 200 | . 200 . Destroy 0b10 Robot/NC 30 | 10 20 . Destroy Leader 42 | . 42 . Successful Hack 27 | . 27 . Lose Combat Pursuer 30 | . 30 . Influence Decreases 329 | 10 285 34 Entered New Map 17 | . . 17 Time Decay 282 | 10 255 17 Lost Part 30 | . 30 . Squads Dispatched 1 | . 1 . Investigation . | . . . Extermination . | . . . Reinforcement 1 | . 1 . Assault . | . . . Garrison . | . . . Intercept . | . . . Searches Triggered . | . . . Construction Impeded . | . . . Haulers Reinforced . | . . . Active Scanning Responses . | . . . Cargo Convoy Interrupts . | . . . Stealth | -11 -10 -10 --------- Run | Yrd Mat Sub Distress Signals 1 | . 1 . Communications Jammed . | . . . Distress Signals . | . . . Times Spotted 25 | . 20 5 Peak Tracking Total 4 | . 4 2 Tactical Retreats 1 | . 1 . Traps | -11 -10 -10 ------- Run | Yrd Mat Sub Traps Triggered 1 | . 1 . Indirectly . | . . . Trap Hack Attempts . | . . . Triggered . | . . . Disarmed . | . . . Reprogrammed . | . . . Reused . | . . . Traps Extracted . | . . . Installed . | . . . Triggered . | . . . Machines | -11 -10 -10 ---------- Run | Yrd Mat Sub Machines Disabled . | . . . Max in Single Turn . | . . . Machines Repaired . | . . . Machines Dismantled . | . . . Machines Sabotaged . | . . . Overloaded Fab Kills . | . . . Hacking | -11 -10 -10 --------- Run | Yrd Mat Sub Machines Accessed 6 | . 5 1 Terminals 5 | . 5 . Fabricators . | . . . Repair Stations . | . . . Recycling Units . | . . . Scanalyzers . | . . . Garrison Access . | . . . Total Hacks 21 | . 16 5 Successful 14 | . 9 5 Failed 7 | . 7 . Catastrophic . | . . . Database Lockouts . | . . . Manual 7 | . 7 . Terminals 16 | . 16 . Fabricators . | . . . Repair Stations . | . . . Recycling Units . | . . . Scanalyzers . | . . . Garrison Access . | . . . Terminal Hacks 11 | . 6 5 Record 5 | . . 5 Robot Analysis 2 | . 2 . Prototype ID Bank 1 | . 1 . Locate Traps 2 | . 2 . Zone Layout 1 | . 1 . Fabricator Hacks . | . . . Repair Station Hacks . | . . . Recycling Unit Hacks . | . . . Scanalyzer . | . . . Garrison Access Hacks . | . . . Unauthorized Hacks 3 | . 3 . Terminals 3 | . 3 . Botnet 2 | . 2 . Operators 1 | . 1 . Fabricators . | . . . Repair Stations . | . . . Recycling Units . | . . . Scanalyzers . | . . . Garrison Access . | . . . Data Cores Recovered . | . . . Used . | . . . Hacking Detections 4 | . 4 . Full Trace Events . | . . . Feedback Events . | . . . Feedback Blocked . | . . . Robot Schematics Acquired . | . . . Robots Built . | . . . Authchips . | . . . Time . | . . . Total Robot Build Rating . | . . . Part Schematics Acquired . | . . . Parts Built . | . . . Authchips . | . . . Time . | . . . Total Part Build Rating . | . . . Part Studies Acquired . | . . . Parts Repaired . | . . . Time . | . . . Parts Recycled . | . . . Recycled Matter . | . . . Retrieved Matter . | . . . Retrieved Components . | . . . Parts Scanalyzed . | . . . Part Schematics Acquired . | . . . Parts Damaged . | . . . Bothacking | -11 -10 -10 ------------ Run | Yrd Mat Sub Used RIF Installer . | . . . Robots Hacked . | . . . Non-combat . | . . . Combat . | . . . Robot Hacks Applied . | . . . Relay Couplers Released . | . . . Fabnet Peak Effective % . | . . . Robots Rewired . | . . . Allies Hacked . | . . . Hacks Repelled . | . . . Allies | -11 -10 -10 -------- Run | Yrd Mat Sub Total Allies . | . . . Largest Group . | . . . Highest-Rated Group . | . . . Highest-Rated Ally . | . . . Total Orders . | . . . Ally Attacks . | . . . Total Damage . | . . . Kills . | . . . Allies Corrupted . | . . . Allies Melted . | . . . Intel | -11 -10 -10 ------- Run | Yrd Mat Sub Active Infowar (turns) 741 | 7 541 193 Seismic 741 | 7 541 193 Robot Analysis Total 2 | . 2 . Derelict Logs Recovered . | . . . Drone Launches . | . . . Drone Recoveries . | . . . Exploration | -11 -10 -10 ------------- Run | Yrd Mat Sub Turns Passed 1394 | 65 1104 225 Spaces Moved 767 | 36 656 75 Core 3 | 3 . . Treads 348 | . 295 53 Legs . | . . . Wheels 416 | 33 361 22 Hover . | . . . Flight . | . . . Fastest Speed 50 | 50 80 120 Average Speed 124 | 80 124 148 Slowest Speed 160 | 95 160 160 Overloaded Moves . | . . . Propulsion Burnouts . | . . . Robots Hopped . | . . . Potential Cave-ins . | . . . Cave-ins Triggered . | . . . Exploration Rate (%) 28 | 3 75 6 Regions Visited 2 Branch Regions 1 Pre-discovered Areas . | . . . Known Exits Taken . | . . . Unknown Exits Taken 2 | 1 1 . Scrap Searched . | . . . Spaces Dug . | . . . Terrain Destroyed . | . . . Melee . | . . . Projectile . | . . . AOE . | . . . Terrain Rammed . | . . . Walls Destroyed . | . . . Machines Disabled . | . . . Actions | -11 -10 -10 --------- Run | Yrd Mat Sub Total 1048 | 54 855 139 Wait 123 | . 102 21 Move 765 | 35 655 75 Hop . | . . . Pick Up 22 | 3 17 2 Fast Attach 9 | 7 2 . Attach 9 | . 3 6 Detach 1 | . 1 . Swap 7 | . 6 1 Drop 10 | . 9 1 Fire 102 | 9 60 33 Melee . | . . . Ram . | . . . Kick . | . . . Crush . | . . . Escape Stasis . | . . . Rewire . | . . . Trap . | . . . Miscellaneous . | . . . Route ------- -11/Scrapyard -10/Materials (discovered 5 exits: [*Mat x3] / [*Min] / *Sub) -10/Subcaves History --------- Turn | Location | Event 14 | -11/Scrapyard | Discovered new exit (range 16) 66 | -11/Scrapyard | Entered Materials 308 | -10/Materials | Build established: Mutant 469 | -10/Materials | Discovered new exit (range 15) 639 | -10/Materials | Core integrity fell below 50% 804 | -10/Materials | Discovered new exit (range 16) 1014 | -10/Materials | Discovered new exit (range 12) 1014 | -10/Materials | Discovered new exit (range 12) 1158 | -10/Materials | Discovered new exit (range 9) 1170 | -10/Materials | Entered Subcaves 1171 | -10/Subcaves | Approached by a straggling Scientist 1233 | -10/Subcaves | Visited Clippyterm 1237 | -10/Subcaves | Learned Research security intel 1237 | -10/Subcaves | Learned Research machine intel 1366 | -10/Subcaves | Core integrity fell below 20% 1395 | -10/Subcaves | Destroyed by L5-KYF(R) with Subdweller Laser Last Messages --------------- 01306_ Lgt. Assault Rifle destroyed. 01315_ Subatomizers dissect the Wheel. 01328_ 31-L70(R) affixes Scrap Shield Fragment to Scrap Shield. 01331_ NO-RT2(R) destroyed. 01334_ 31-L70(R) affixes Scrap Shield Fragment to Scrap Shield. 01334_ 31-L70(R) destroyed. 01338_ L5-KYF(R): "WEHOME!" 01349_ Lgt. Treads destroyed. 01357_ Ion Engine destroyed. 01363_ Seismic Detector destroyed. 01369_ Autogun destroyed. 01371_ Arm. Wheel destroyed. 01375_ Ion Engine destroyed. 01379_ Lgt. Assault Rifle destroyed. 01380_ V1-LIU(R) affixes Scrap Shield Fragment to Scrap Shield. 01393_ Critical hit (Destroy). 01393_ Autogun destroyed. Map ----- +----------------------------------------------------+ | ?????????????????????????????????????????????????? | | ?????????????????????????????????????????????????? | | ?????????????????????????????????????????????????? | | ?????????????????????????????????????????????????? | | ?????????????????????????????????????????????????? | | ?????????????????????????????????????????????????? | | ?????????????????????????????????????????????????? | | ?????????????????????????????????????????????????? | | ?????????????????????????????????????????????????? | | ???????######???????#????????????????????????????? | | ??####?# #????### ????????????????????????????? | | # # ## #????# ????????????????????????????? | | # #?##? ????????????????????????????? | | # # ##? #?# #????????????????????????????? | | ## ###"" #### ### ##???????????????????????????? | | # ??### "## # #???????????????????????????? | | ## # # ## ## ????????????????????????????? | | ?# " ## #????????????????????????????? | | ?# ## # #### ###??????????????????????????? | | ?????### ""#### ######?????????????????????? | | ?# ???# " " % # ##????????????????????? | | ?# ### = #????????????????????? | | ## ! ""#????????????????????? | | # # # %= ####"#?????????????????????? | | # #### ####"##????????????????????? | | # #??## ##@ "##???????????????????? | | # ##???# *%#RR#"#####???????????????? | | ###### ###### *|&"" " ####????????????? | | ?????# #"""## !&% %! """ #????????????? | | ??????# #"" ## ###%[ ##" "?????????? | | ??????? ##"X ## =*##????? ??????????? | | ??????? ##"" ## ### #?????????????????? | | ?????? ###"""### #" "#????????????????? | | ?????? ###?#####?## "" "#????????????????? | | ????? #???????????## ### " ##????????????????? | | ????? #?????????????####?# ""##?????????????????? | | ????? #???????????????????# ###??????????????????? | | ????? ????????????????????##?????????????????????? | | ?????????????????????????????????????????????????? | | ?????????????????????????????????????????????????? | | ?????????????????????????????????????????????????? | | ?????????????????????????????????????????????????? | | ?????????????????????????????????????????????????? | | ?????????????????????????????????????????????????? | | ?????????????????????????????????????????????????? | | ?????????????????????????????????????????????????? | | ?????????????????????????????????????????????????? | | ?????????????????????????????????????????????????? | | ?????????????????????????????????????????????????? | | ?????????????????????????????????????????????????? | +----------------------------------------------------+ Best States ------------- Heat Dissipation 25 Energy Generation 10 Energy Capacity 250 Matter Stores 450 Matter Capacity 450 Sight Range 16 Terrain Scan Density 10 Evasion (%) 44 Recoil Reduction 2 Item Schematics ----------------- None Robot Schematics ------------------ None Fabricated ------------ Nothing Repaired ---------- Nothing Studied --------- None Alien Tech Used ----------------- None Achievements -------------- None Challenges ------------ None Game ------ Seed DeepSchematicArmor Manual? 0 Play Time 00:16:09 Cumulative 134.8 hours Start 2026.02.10 @ 13:11:34 End 2026.02.10 @ 13:24:36 Sessions 1 Manual Loads 0 Difficulty Rogue Special Mode None Game No. 113 Rogue 113 Adventurer 0 Explorer 0 Win Type - Total 1 Types 1/0/0/0/0/0/0/0/0/0 Lore% 62 Gallery% 58 Achievement% 37 Wizard Run 0 Options --------- Layout 1 ASCII 0 Keyboard 0 Movement Numpad Keybinds 0 Fullscreen 1 Font 18/SmallcapsGlow Map View 50x40 Zoom Use 0% Tactical HUD 1 Map Filters NONE Filters NONE Steam 1 RUN: ba0824ea-fba8-48c9-848b-c2caf4f0015e